bitfinex-derivatives/quotes_SOLF0:USTF0_20240930
["timestamp","ask_amount","ask_price","bid_price","bid_amount"]
[1727667333060,11.08766043,156.79,156.73,11.0399]
[1727667333352,3.31422,156.77,156.73,11.0399]
[1727667333557,0.12502,156.77,156.73,7.85]
[1727667333760,3.1895,156.76,156.73,7.85]
[1727667334159,3.1896,156.75,156.72,7.85]
[1727667335766,7.97502,156.77,156.72,7.85]
[1727667335966,7.97502,156.77,156.72,11.0401]
[1727667336266,7.97502,156.77,156.72,7.85]
[1727667336470,3.1896,156.75,156.72,7.85]
[1727667336656,7.85,156.74,156.66,1.3295]
[1727667336857,3.1901,156.73,156.69,11.0406]
[1727667337168,7.97502,156.77,156.72,7.85]
[1727667337656,3.1896,156.75,156.72,7.85]
[1727667338469,3.31442,156.77,156.73,7.85]
[1727667338671,0.12502,156.77,156.73,7.85]
[1727667338974,7.97502,156.77,156.71,7.85]
[1727667339169,3.1896,156.75,156.72,3.1902]
[1727667339377,7.97502,156.77,156.72,3.1902]
[1727667340367,7.97502,156.77,156.7,7.85]
[1727667340368,3.1896,156.75,156.7,7.85]
[1727667340570,3.1896,156.75,156.71,3.1903]
[1727667343377,3.1896,156.75,156.71,11.0403]
[1727667343678,3.1898,156.74,156.71,7.85]
[1727667343881,7.85,156.75,156.69,7.85]
[1727667344376,7.85,156.75,156.71,7.85]
[1727667344377,3.1898,156.74,156.71,7.85]
[1727667345376,3.1898,156.74,156.71,11.0404]
[1727667345781,3.1902,156.72,156.66,1.3295]
[1727667345986,7.85,156.73,156.67,3.1912]
[1727667346384,7.85,156.73,156.66,9.1795]
[1727667346588,3.1905,156.71,156.68,3.191]
[1727667348784,7.85,156.71,156.66,1.3295]
[1727667348979,7.85,156.71,156.66,9.1795]
[1727667349594,3.1906,156.7,156.66,12.3709]
[1727667350782,11.0405,156.71,156.66,12.3709]
[1727667354891,7.85,156.73,156.68,3.191]
[1727667355798,3.1902,156.72,156.68,3.191]
[1727667357097,0.12502,156.77,156.67,7.85]
[1727667357296,7.85,156.74,156.7,3.1904]
[1727667357896,7.85,156.76,156.72,3.19]
[1727667359200,3.1894,156.76,156.72,3.19]
[1727667359403,11.0394,156.76,156.72,3.19]
[1727667359792,11.0394,156.76,156.73,3.1899]
[1727667360300,3.31422,156.77,156.72,3.19]
[1727667360599,11.16422,156.77,156.71,7.85]
[1727667361103,7.97502,156.77,156.71,7.85]
[1727667361302,7.97502,156.77,156.72,7.85]
[1727667361303,0.12502,156.77,156.72,7.85]
[1727667362203,0.12502,156.77,156.75,3.1896]
[1727667362700,0.12502,156.77,156.75,7.85]
[1727667362899,0.12502,156.77,156.76,3.1894]
[1727667366603,0.12502,156.77,156.74,3.1896]
[1727667366904,0.12502,156.77,156.74,7.85]
[1727667367299,0.12502,156.77,156.75,3.1896]
[1727667367504,0.12502,156.77,156.74,7.85]
[1727667368201,0.12502,156.77,156.7,1.3181]
[1727667368202,0.12502,156.77,156.75,7.85]
[1727667368703,0.12502,156.77,156.75,11.0395]
[1727667369405,0.12502,156.77,156.76,3.1894]
[1727667369601,0.12502,156.77,156.76,11.0394]
[1727667372511,0.12502,156.77,156.75,7.85]
[1727667373206,0.12502,156.77,156.75,11.0396]
[1727667374108,0.12502,156.77,156.75,7.85]
[1727667374409,0.12502,156.77,156.74,7.85]
[1727667375918,0.12502,156.77,156.74,11.0398]
[1727667376414,0.12502,156.77,156.75,7.85]
[1727667378604,0.12502,156.77,156.76,7.85]
[1727667378810,0.12502,156.77,156.76,11.0394]
[1727667379106,0.12502,156.83,156.81,7.85]
[1727667379599,0.12502,156.83,156.72,1.3388]
[1727667379808,3.1883,156.82,156.79,7.85]
[1727667380411,3.36080221,156.83,156.79,7.85]
[1727667380609,3.36080221,156.83,156.72,1.3388]
[1727667380610,11.21080221,156.83,156.72,1.3388]
[1727667380804,11.21080221,156.83,156.76,7.85]
[1727667381007,3.1884,156.81,156.76,7.85]
[1727667381206,11.21080221,156.83,156.76,7.85]
[1727667381408,11.21080221,156.83,156.76,11.0393]
[1727667382115,3.1886,156.8,156.76,11.0393]
[1727667383911,3.1886,156.8,156.77,7.85]
[1727667384123,3.36080221,156.83,156.79,7.85]
[1727667384718,3.1883,156.82,156.79,7.85]
[1727667385418,3.1883,156.82,156.79,11.0387]
[1727667385811,0.12502,156.83,156.8,3.1884]
[1727667386112,0.12502,156.83,156.81,7.85]
[1727667387310,0.12502,156.83,156.82,7.85]
[1727667388506,0.12502,156.83,156.82,11.0382]
[1727667389418,0.12502,156.83,156.82,3.1882]
[1727667389623,0.12502,156.83,156.82,11.0382]
[1727667390507,0.12502,156.83,156.78,3.9118]
[1727667390712,0.12502,156.83,156.78,1.2982]
[1727667390924,7.97502,156.83,156.78,9.1482]
[1727667391111,7.97502,156.83,156.78,12.337]
[1727667391112,11.16312,156.83,156.78,12.337]
[1727667391719,3.1884,156.81,156.76,11.0392]
[1727667392016,3.1884,156.81,156.76,7.85]
[1727667392017,11.0384,156.81,156.76,7.85]
[1727667392207,11.0384,156.81,156.73,1.2674]
[1727667392208,6.39808835,156.82,156.77,7.85]
[1727667392413,3.1882,156.82,156.78,3.1889]
[1727667393815,3.31302,156.83,156.79,3.1888]
[1727667394125,0.12502,156.83,156.76,12.25]
[1727667394308,0.12502,156.83,156.78,12.25]
[1727667394514,0.12502,156.83,156.81,12.25]
[1727667396018,0.12502,156.83,156.82,3.1882]
[1727667396424,0.12518,156.84,156.81,12.25]
[1727667397110,0.12518,156.84,156.83,3.188]
[1727667397317,0.12518,156.84,156.81,12.25]
[1727667397627,0.12518,156.84,156.79,13.5526]
[1727667397921,0.12518,156.84,156.79,1.3026]
[1727667399011,3.14481658,156.83,156.77,0.12502]
[1727667399210,12.25,156.83,156.77,0.12502]
[1727667399409,16.75988653,156.83,156.77,0.12502]
[1727667399625,4.50988653,156.83,156.77,0.12502]
[1727667400431,3.1883,156.82,156.77,3.31412]
[1727667400728,1.3379,156.83,156.77,0.12502]
[1727667400926,3.1882,156.82,156.78,3.1889]
[1727667401229,3.1882,156.82,156.77,0.12502]
[1727667401230,0.12518,156.84,156.77,12.37502]
[1727667401416,3.31298,156.84,156.77,12.37502]
[1727667402019,0.12518,156.84,156.8,3.1884]
[1727667402222,0.12518,156.84,156.79,12.25]
[1727667402425,0.12518,156.84,156.8,3.1885]
[1727667402626,0.12518,156.84,156.79,12.25]
[1727667403525,0.12518,156.84,156.81,3.1882]
[1727667406326,0.12518,156.84,156.79,12.25]
[1727667406528,0.12518,156.84,156.8,3.1884]
[1727667407433,0.12518,156.84,156.81,3.1883]
[1727667407729,0.12518,156.84,156.79,12.25]
[1727667407918,0.12518,156.84,156.81,12.25]
[1727667408119,0.12518,156.84,156.83,3.188]
[1727667408631,0.12518,156.84,156.82,3.1881]
[1727667409031,0.12518,156.84,156.79,12.25]
[1727667409329,0.12518,156.84,156.8,3.1884]
[1727667409833,0.12518,156.84,156.79,12.25]
[1727667410630,3.188,156.83,156.79,12.25]
[1727667410827,0.12518,156.84,156.77,0.12502]
[1727667411030,3.1886,156.81,156.77,0.12502]
[1727667411829,0.12518,156.84,156.77,0.12502]
[1727667412632,3.1886,156.8,156.77,0.12502]
[1727667414142,0.12518,156.84,156.79,15.4386]
[1727667414632,3.1881,156.83,156.79,12.25]
[1727667416228,3.1881,156.83,156.79,15.4387]
[1727667417537,0.12518,156.84,156.79,12.25]
[1727667417837,3.1883,156.82,156.77,15.56412]
[1727667418734,3.1883,156.82,156.78,3.189]
[1727667420241,3.188,156.83,156.79,3.1886]
[1727667421141,3.1882,156.82,156.78,3.1888]
[1727667421648,0.12518,156.84,156.77,12.37502]
[1727667421941,3.188,156.83,156.79,3.1888]
[1727667422133,0.12518,156.84,156.77,12.37502]
[1727667422338,3.1882,156.82,156.78,3.1889]
[1727667423442,3.31308,156.84,156.8,3.1884]
[1727667423934,3.1883,156.82,156.79,12.25]
[1727667424337,0.12518,156.84,156.79,12.25]
[1727667424934,3.188,156.83,156.79,15.4386]
[1727667426539,0.12518,156.84,156.79,12.25]
[1727667428248,0.12518,156.84,156.81,3.1882]
[1727667428440,0.12518,156.84,156.79,12.25]
[1727667428945,0.12518,156.84,156.82,12.25]
[1727667429147,0.12518,156.84,156.83,1.2489]
[1727667429544,0.12518,156.84,156.83,4.4369]
[1727667430746,3.1871,156.88,156.84,15.4376]
[1727667433247,3.31182,156.89,156.84,15.4376]
[1727667433849,0.12502,156.89,156.84,12.25]
[1727667434049,0.12502,156.89,156.87,3.1871]
[1727667434950,0.12502,156.89,156.86,3.1873]
[1727667435253,0.12502,156.89,156.83,13.4989]
[1727667435646,3.31182,156.89,156.84,3.1876]
[1727667437148,0.12502,156.89,156.83,13.4989]
[1727667437744,0.12502,156.89,156.85,3.1875]
[1727667439453,0.12502,156.89,156.83,13.4989]
[1727667440151,0.12502,156.89,156.85,12.25]
[1727667441851,0.12502,156.89,156.87,3.187]
[1727667442161,0.12502,156.89,156.87,15.437]
[1727667443754,0.12502,156.89,156.83,1.2489]
[1727667443755,0.12502,156.89,156.86,3.1873]
[1727667443955,0.12502,156.89,156.84,12.25]
[1727667444357,0.12502,156.89,156.87,3.187]
[1727667445255,12.25,156.96,156.87,3.187]
[1727667445256,3.31072,156.95,156.87,12.25]
[1727667445455,3.31072,156.95,156.89,12.25]
[1727667446059,3.31072,156.95,156.9,3.1864]
[1727667446257,3.31072,156.95,156.89,12.25]
[1727667446258,3.31052,156.95,156.89,12.25]
[1727667446453,3.31052,156.95,156.9,3.1865]
[1727667446454,0.12502,156.95,156.9,3.1865]
[1727667446663,0.12502,156.95,156.87,12.25]
[1727667447153,3.1861,156.93,156.88,3.1868]
[1727667447352,0.12502,156.95,156.87,12.25]
[1727667447759,3.1858,156.94,156.89,3.1866]
[1727667447957,0.12502,156.95,156.89,3.1866]
[1727667448366,0.12502,156.95,156.9,3.1864]
[1727667448868,3.1861,156.93,156.88,3.1868]
[1727667449752,3.1858,156.94,156.89,3.1867]
[1727667452269,0.12502,156.95,156.87,12.25]
[1727667452565,3.31062,156.95,156.87,12.25]
[1727667452960,3.31062,156.95,156.9,3.1864]
[1727667453359,0.12502,156.95,156.9,3.1864]
[1727667453564,3.1858,156.94,156.89,12.25]
[1727667453867,3.1858,156.94,156.89,15.4367]
[1727667454067,0.12502,156.95,156.89,3.1867]
[1727667454260,0.12502,156.95,156.87,12.25]
[1727667454670,0.12502,156.95,156.89,12.25]
[1727667454868,0.12502,156.95,156.91,12.25]
[1727667455064,0.12502,156.95,156.92,3.186]
[1727667456463,0.12502,156.95,156.93,3.1859]
[1727667458764,0.12502,156.95,156.92,3.186]
[1727667459471,0.12502,156.95,156.92,3.1861]
[1727667459666,0.12502,156.95,156.91,12.25]
[1727667460274,0.12502,156.95,156.92,3.1861]
[1727667461677,0.12502,156.95,156.93,7.83]
[1727667462578,3.31072,156.95,156.91,7.83]
[1727667462772,0.12502,156.95,156.91,7.83]
[1727667462970,3.31072,156.95,156.91,7.83]
[1727667463174,0.12502,156.95,156.92,7.83]
[1727667463569,0.12502,156.95,156.92,11.0159]
[1727667463869,0.12502,156.95,156.85,4.4147955]
[1727667463870,0.12502,156.95,156.93,7.83]
[1727667464478,0.12502,156.95,156.94,3.1857]
[1727667470682,0.12502,157.01,156.93,7.83]
[1727667470879,0.12502,157.01,156.98,7.83]
[1727667471274,0.12502,157.01,156.97,3.1851]
[1727667471480,7.83,157.0,156.94,1.2416]
[1727667471682,7.83,157.0,156.95,3.1855]
[1727667471980,11.0148,156.99,156.95,3.1855]
[1727667472378,7.83,156.99,156.94,1.2416]
[1727667472579,7.83,156.99,156.93,11.0159]
[1727667472779,3.1851,156.98,156.93,7.83]
[1727667472979,7.83,156.99,156.94,3.1857]
[1727667473179,2.67702,157.01,156.94,3.1857]
[1727667473377,3.1849,156.98,156.94,3.1857]
[1727667473977,7.83,156.99,156.9,2.6004]
[1727667474192,3.1854,156.96,156.9,1.3528]
[1727667474487,7.83,156.97,156.92,7.83]
[1727667474987,7.83,156.97,156.92,11.016]
[1727667474988,11.0153,156.97,156.92,11.016]
[1727667476093,7.83,156.97,156.9,1.3528]
[1727667476293,7.83,156.97,156.92,7.83]
[1727667476478,5.87436723,157.01,156.93,7.83]
[1727667476679,7.83,156.99,156.93,7.83]
[1727667476986,3.1851,156.97,156.93,7.83]
[1727667477486,3.1848,156.99,156.94,11.0157]
[1727667477880,13.70436723,157.01,156.94,11.0157]
[1727667478282,13.70436723,157.01,156.94,7.83]
[1727667478492,3.1849,156.98,156.94,7.83]
[1727667478994,3.1852,156.97,156.93,7.83]
[1727667479178,7.83,156.99,156.93,7.83]
[1727667479487,7.83,156.98,156.93,7.83]
[1727667479686,3.1855,156.96,156.93,7.83]
[1727667479880,7.83,156.98,156.93,7.83]
[1727667480577,7.83,156.98,156.9,1.3528]
[1727667480783,7.83,156.96,156.9,9.1828]
[1727667481183,3.1856,156.95,156.9,12.3692]
[1727667483489,3.32236723,157.01,156.94,7.83]
[1727667483783,3.32236723,157.01,156.95,7.83]
[1727667484490,0.12502,157.01,156.97,11.015]
[1727667484698,0.12502,157.01,156.99,7.83]
[1727667484994,3.30942,157.01,156.97,7.83]
[1727667485892,3.30942,157.01,156.97,11.015]
[1727667487095,0.12502,157.01,156.99,7.83]
[1727667487887,3.30942,157.01,156.99,7.83]
[1727667488090,3.30942,157.01,156.97,11.015]
[1727667488286,0.12502,157.01,156.96,7.83]
[1727667488502,3.1849,156.98,156.9,3.8282]
[1727667488709,3.1849,156.98,156.94,7.83]
[1727667488989,9.099,157.0,156.94,7.83]
[1727667489204,1.269,157.0,156.97,11.0151]
[1727667489397,1.269,157.0,156.97,7.83]
[1727667489991,0.12502,157.01,156.98,11.0149]
[1727667490193,0.12502,157.01,156.98,7.83]
[1727667490498,7.95502,157.01,156.94,7.83]
[1727667490700,7.83,156.99,156.9,3.8282]
[1727667490892,7.83,156.99,156.94,7.83]
[1727667491290,7.83,156.98,156.9,3.8282]
[1727667491494,7.83,156.98,156.92,7.83]
[1727667492098,7.83,156.98,156.94,7.83]
[1727667493100,0.12502,157.01,156.94,7.83]
[1727667493396,0.12502,157.01,156.95,7.83]
[1727667493397,7.95502,157.01,156.95,7.83]
[1727667493604,3.1848,156.99,156.95,11.0154]
[1727667494296,0.12502,157.01,156.96,7.83]
[1727667495202,0.12502,157.01,156.91,1.2495]
[1727667495203,0.12502,157.01,156.97,7.83]
[1727667495399,3.30942,157.01,156.97,11.015]
[1727667497399,3.30942,157.01,156.99,3.1846]
[1727667497400,0.12502,157.01,156.99,3.1846]
[1727667497996,3.30932,157.01,156.98,3.1848]
[1727667500398,14.68791206,157.01,156.98,3.1848]
[1727667500600,3.30932,157.01,156.98,3.1848]
[1727667501104,14.6881321,157.01,156.98,3.1848]
[1727667501298,14.6881321,157.01,156.91,1.2495]
[1727667501299,11.5038321,157.01,156.91,1.2495]
[1727667501503,3.1847,157.0,156.96,11.0152]
[1727667501708,11.5038321,157.01,156.96,11.0152]
[1727667501898,3.1848,156.99,156.96,7.83]
[1727667502296,19.3338321,157.01,156.96,7.83]
[1727667502496,3.1849,156.99,156.96,7.83]
[1727667502697,11.3788121,156.99,156.94,11.0157]
[1727667502898,3.1851,156.98,156.94,11.0157]
[1727667503095,7.83,156.98,156.93,11.0159]
[1727667503396,7.83,156.98,156.93,3.1859]
[1727667503703,7.83,156.97,156.92,7.83]
[1727667503901,7.83,156.97,156.93,3.1858]
[1727667504100,7.83,156.98,156.93,11.0158]
[1727667504811,3.1852,156.97,156.93,11.0158]
[1727667505600,3.185,156.98,156.94,3.1857]
[1727667506396,7.83,156.99,156.94,3.1857]
[1727667506594,3.1854,156.96,156.92,3.1861]
[1727667506902,7.83,156.96,156.91,7.83]
[1727667507501,11.0154,156.96,156.92,3.1861]
[1727667507904,7.83,156.92,156.86,1.273]
[1727667508106,7.83,156.92,156.86,9.103]
[1727667508603,7.83,156.92,156.86,12.2902]
[1727667508604,11.0163,156.92,156.86,12.2902]
[1727667509209,7.83,156.92,156.86,12.2902]
[1727667509409,3.187,156.88,156.84,7.83]
[1727667509604,7.83,156.89,156.84,7.83]
[1727667509913,7.83,156.88,156.83,0.12502]
[1727667510212,3.1872,156.87,156.83,0.12502]
[1727667510520,7.83,156.86,156.83,0.12502]
[1727667511312,11.0175,156.86,156.83,0.12502]
[1727667511506,3.1875,156.86,156.83,0.12502]
[1727667511715,15.3948852,156.88,156.83,0.12502]
[1727667511906,3.1872,156.87,156.83,0.12502]
[1727667513108,3.1872,156.87,156.83,3.31292]
[1727667513411,14.8887,156.93,156.83,12.38502]
[1727667513809,3.1871,156.88,156.83,3.31292]
[1727667515511,3.1875,156.86,156.83,0.12502]
[1727667515809,3.14282069,156.85,156.77,1.38372]
[1727667516115,12.26,156.87,156.77,1.38372]
[1727667516409,12.26,156.84,156.77,0.12502]
[1727667516600,0.12502,156.89,156.77,0.12502]
[1727667516601,12.26,156.8,156.77,0.12502]
[1727667516806,3.189,156.78,156.77,0.12502]
[1727667517110,12.26,156.8,156.77,0.12502]
[1727667517611,15.45544555,156.8,156.77,0.12502]
[1727667518118,3.189,156.78,156.77,0.12502]
[1727667524619,6.44030256,156.78,156.77,0.12502]
[1727667526816,3.1899,156.74,156.71,0.12502]
[1727667528024,3.1894,156.76,156.72,3.1901]
[1727667528712,6.42101389,156.76,156.72,3.1901]
[1727667529224,3.1896,156.75,156.72,3.1901]
[1727667530228,3.1896,156.75,156.71,3.31542]
[1727667530733,1.27,156.77,156.71,0.12502]
[1727667531026,3.1902,156.72,156.71,0.12502]
[1727667531326,12.26,156.75,156.71,0.12502]
[1727667531531,3.1901,156.73,156.71,0.12502]
[1727667531725,3.2084025,156.74,156.71,0.12502]
[1727667532821,3.1901,156.73,156.71,0.12502]
[1727667533227,3.2084025,156.74,156.71,0.12502]
[1727667533429,3.19,156.73,156.71,0.12502]
[1727667533823,3.1902,156.72,156.71,0.12502]
[1727667539626,11.0402,156.72,156.71,0.12502]
[1727667540032,3.1902,156.72,156.71,0.12502]
[1727667541742,11.0402,156.72,156.71,0.12502]
[1727667541941,3.1901,156.73,156.71,0.12502]
[1727667542133,7.85,156.73,156.71,0.12502]
[1727667543239,3.1902,156.72,156.71,0.12502]
[1727667545040,11.0402,156.72,156.71,0.12502]
[1727667547142,7.85,156.72,156.71,0.12502]
[1727667547444,11.0402,156.72,156.71,0.12502]
[1727667555638,14.20027917,156.72,156.71,0.12502]
[1727667559640,3.19,156.73,156.71,0.12502]
[1727667559837,3.18434407,156.76,156.71,0.12502]
[1727667561942,3.1898,156.74,156.71,0.12502]
[1727667564446,3.19,156.73,156.71,0.12502]
[1727667564651,11.04,156.73,156.71,0.12502]
[1727667564853,7.85,156.73,156.71,0.12502]
[1727667565352,11.05703524,156.75,156.71,0.12502]
[1727667567347,3.1898,156.74,156.71,0.12502]
[1727667568853,1.3338,156.79,156.71,0.12502]
[1727667569049,4.45217568,156.79,156.73,3.19]
[1727667569355,7.85,156.77,156.73,3.19]
[1727667569555,10.9859341,156.77,156.73,3.19]
[1727667570457,3.1894,156.76,156.73,3.19]
[1727667572651,11.0394,156.76,156.73,3.19]
[1727667573555,11.0394,156.76,156.72,11.0401]
[1727667573859,11.0398,156.74,156.71,0.12502]
[1727667574262,7.85,156.74,156.71,0.12502]
[1727667574758,7.85,156.74,156.71,3.31532]
[1727667575955,11.0398,156.74,156.71,3.31532]
[1727667577781,3.17140322,156.75,156.71,0.12502]
[1727667577962,11.0393,156.77,156.73,3.1899]
[1727667578363,7.85,156.76,156.71,7.97502]
[1727667579272,3.1896,156.75,156.72,3.1901]
[1727667579462,4.53668559,156.79,156.72,3.1901]
[1727667579658,7.85,156.76,156.72,3.1901]
[1727667579860,11.0395,156.76,156.72,3.1901]
[1727667582463,3.1896,156.75,156.72,3.1901]
[1727667582666,11.0396,156.75,156.71,3.31542]
[1727667583666,7.85,156.75,156.71,0.12502]
[1727667583964,7.85,156.76,156.71,0.12502]
[1727667585156,11.0395,156.76,156.72,3.1901]
[1727667586570,3.20288559,156.79,156.71,0.12502]
[1727667586784,3.1891,156.78,156.74,3.1896]
[1727667587067,6.38229402,156.78,156.74,3.1896]
[1727667588465,2.6041,156.82,156.76,7.85]
[1727667588671,3.1886,156.8,156.76,7.85]
[1727667588867,7.85,156.81,156.76,7.85]
[1727667589070,7.85,156.81,156.76,11.0393]
[1727667589367,11.0387,156.8,156.76,11.0393]
[1727667590174,3.1888,156.79,156.76,7.85]
[1727667590470,3.1888,156.79,156.75,3.1895]
[1727667590675,3.1888,156.79,156.74,7.85]
[1727667590676,7.85,156.79,156.74,7.85]
[1727667591063,7.85,156.79,156.72,2.5842]
[1727667591362,7.85,156.79,156.74,7.85]
[1727667591961,7.85,156.77,156.74,3.1898]
[1727667592166,11.41630763,156.81,156.74,7.85]
[1727667592363,7.85,156.79,156.74,7.85]
[1727667592674,11.0389,156.79,156.75,3.1894]
[1727667592869,7.85,156.79,156.75,3.1894]
[1727667593271,3.189,156.79,156.75,3.1895]
[1727667593470,11.039,156.79,156.75,3.1895]
[1727667593778,7.85,156.79,156.74,7.85]
[1727667594077,3.189,156.78,156.74,11.0396]
[1727667595576,3.189,156.78,156.74,3.1896]
[1727667595777,3.189,156.78,156.74,11.0396]
[1727667596575,3.189,156.78,156.74,3.1896]
[1727667597277,3.1887,156.8,156.76,11.0392]
[1727667598074,6.37342011,156.8,156.76,11.0392]
[1727667598674,3.18472011,156.8,156.77,3.189]
[1727667600179,6.37332011,156.8,156.77,3.189]
[1727667600379,3.1886,156.8,156.77,3.189]
[1727667600996,6.38736096,156.8,156.77,3.189]
[1727667602281,3.189,156.78,156.75,3.1895]
[1727667603887,7.85,156.76,156.71,0.12502]
[1727667604079,5.8756434,156.82,156.73,7.85]
[1727667604381,5.8756434,156.82,156.74,7.85]
[1727667604382,7.85,156.8,156.74,7.85]
[1727667604681,11.12004084,156.8,156.74,7.85]
[1727667604981,3.189,156.78,156.74,11.0397]
[1727667605886,11.039,156.78,156.74,3.1897]
[1727667608778,3.1892,156.77,156.74,3.1897]
[1727667610582,11.0397,156.75,156.72,3.1901]
[1727667610885,11.0397,156.75,156.71,0.12502]
[1727667611386,11.0397,156.75,156.71,3.31532]
[1727667611589,7.85,156.75,156.71,0.12502]
[1727667611896,7.85,156.73,156.71,0.12502]
[1727667612279,3.1902,156.72,156.71,0.12502]
[1727667613083,11.0402,156.72,156.71,0.12502]
[1727667614194,3.1902,156.72,156.71,0.12502]
[1727667614993,3.19,156.73,156.71,0.12502]
[1727667615291,11.04,156.73,156.71,0.12502]
[1727667616289,3.26542912,156.74,156.71,0.12502]
[1727667616622,14.57562905,156.78,156.73,7.85]
[1727667616797,7.85,156.78,156.71,0.12502]
[1727667616989,3.1897,156.75,156.71,11.16532]
[1727667617387,7.85,156.75,156.71,0.12502]
[1727667617894,3.14188615,156.74,156.71,0.12502]
[1727667618089,6.33178615,156.74,156.71,0.12502]
[1727667618386,3.14188615,156.74,156.71,0.12502]
[1727667618589,3.1902,156.72,156.71,0.12502]
[1727667619589,3.1906,156.71,156.67,86.77607275]
[1727667619788,11.0406,156.71,156.67,86.77607275]
[1727667620186,14.27476751,156.71,156.67,86.77607275]
[1727667620379,3.1906,156.7,156.65,3.31662]
[1727667620581,7.85,156.69,156.65,3.31662]
[1727667620781,7.85,156.69,156.65,0.12502]
[1727667620987,7.85,156.69,156.65,7.97502]
[1727667621391,7.85,156.69,156.66,3.1913]
[1727667621584,7.85,156.69,156.65,0.12502]
[1727667621890,11.0409,156.69,156.65,0.12502]
[1727667622395,7.85,156.67,156.65,0.12502]
[1727667622607,11.03176012,156.67,156.65,0.12502]
[1727667622891,3.18176012,156.67,156.65,0.12502]
[1727667623101,9.1505,156.69,156.65,0.12502]
[1727667623393,3.1913,156.67,156.65,0.12502]
[1727667624090,11.0413,156.67,156.65,0.12502]
[1727667624385,3.1914,156.66,156.65,0.12502]
[1727667624797,11.0414,156.66,156.65,0.12502]
[1727667627699,3.1914,156.66,156.65,0.12502]
[1727667631302,11.0414,156.66,156.65,0.12502]
[1727667632402,7.67858865,156.69,156.65,3.31642]
[1727667632597,7.85,156.7,156.65,7.97502]
[1727667632997,11.07037687,156.7,156.65,7.97502]
[1727667634201,14.26097687,156.7,156.67,3.1911]
[1727667635305,7.85,156.7,156.65,7.97502]
[1727667635505,7.85,156.72,156.67,7.85]
[1727667636304,14.295505,156.72,156.69,3.1908]
[1727667636504,14.295505,156.72,156.67,7.85]
[1727667636902,1.2701,156.74,156.69,3.1908]
[1727667637106,7.71744028,156.74,156.69,7.85]
[1727667637303,1.2701,156.74,156.69,7.85]
[1727667637500,1.2701,156.74,156.69,11.0407]
[1727667637909,4.46367516,156.74,156.69,11.0407]
[1727667638112,3.19,156.73,156.69,11.0407]
[1727667639008,3.1896,156.75,156.71,3.1903]
[1727667639210,1.3378,156.76,156.71,7.85]
[1727667639507,3.15592874,156.75,156.71,7.85]
[1727667639706,125.21962923,156.77,156.72,7.85]
[1727667639905,56.23962923,156.77,156.72,7.85]
[1727667640716,64.08962923,156.77,156.65,0.12502]
[1727667641011,64.08962923,156.77,156.71,7.85]
[1727667641213,3.1896,156.75,156.71,11.0402]
[1727667641416,0.12502,156.77,156.72,7.85]
[1727667641815,3.31422,156.77,156.73,3.1898]
[1727667643503,3.1894,156.76,156.72,7.85]
[1727667643819,0.12502,156.77,156.72,7.85]